bitfinex/quotes_SOLUSD_20250429
["timestamp","ask_amount","ask_price","bid_price","bid_amount"]
[1745895053718,26.89427565,147.24,147.19,26.89427565]
[1745895054409,82.9,147.3,147.22,26.89427565]
[1745895054620,26.89427565,147.27,147.23,26.89427565]
[1745895054819,26.89427565,147.26,147.22,26.89427565]
[1745895055225,26.89427565,147.24,147.16,16.79860205]
[1745895055426,26.89427565,147.2,147.16,15.44]
[1745895055633,26.89427565,147.2,147.16,26.89427565]
[1745895055927,26.89427565,147.21,147.16,26.89427565]
[1745895056124,26.89427565,147.21,147.14,12.2267436]
[1745895056422,15.44,147.26,147.2,26.89427565]
[1745895056630,42.33427565,147.26,147.21,26.89427565]
[1745895056806,15.44,147.26,147.2,26.89427565]
[1745895057011,26.89427565,147.22,147.15,6.11620795]
[1745895057238,26.89427565,147.22,147.17,26.89427565]
[1745895058224,33.0078578,147.22,147.17,26.89427565]
[1745895058425,33.0078578,147.22,147.18,26.89427565]
[1745895058622,82.9,147.21,147.18,26.89427565]
[1745895058937,82.9,147.21,147.19,26.89427565]
[1745895059438,82.9,147.21,147.15,6.11610572]
[1745895059636,82.9,147.21,147.19,26.89427565]
[1745895060841,82.9,147.21,147.17,6.11534182]
[1745895060842,82.9,147.21,147.2,26.89427565]
[1745895061137,115.90637171,147.25,147.2,26.89427565]
[1745895061331,82.9,147.24,147.15,24.90801838]
[1745895061535,82.9,147.23,147.2,26.89427565]
[1745895062460,82.9,147.23,147.14,6.1102]
[1745895062461,26.89427565,147.21,147.14,6.1102]
[1745895062621,26.89427565,147.16,147.1,6.11828687]
[1745895062959,26.89427565,147.14,147.1,26.89427565]
[1745895063150,26.89427565,147.15,147.11,26.89427565]
[1745895063319,26.89427565,147.16,147.12,26.89427565]
[1745895063522,16.08,147.2,147.12,26.89427565]
[1745895063739,16.08,147.2,147.14,26.89427565]
[1745895063930,33.00946973,147.18,147.13,26.89427565]
[1745895064240,89.01290408,147.23,147.17,26.89427565]
[1745895064449,82.9,147.22,147.2,26.89427565]
[1745895064821,82.9,147.22,147.19,26.89427565]
[1745895065237,82.9,147.22,147.18,26.89427565]
[1745895065933,89.01354743,147.22,147.18,26.89427565]
[1745895066135,89.01354743,147.22,147.19,26.89427565]
[1745895066343,115.90782308,147.22,147.14,33.0108893]
[1745895066636,82.9,147.21,147.18,26.89427565]
[1745895068045,89.01382632,147.21,147.18,26.89427565]
[1745895068756,82.9,147.21,147.18,26.89427565]
[1745895068946,82.9,147.21,147.19,26.89427565]
[1745895069353,82.9,147.21,147.18,26.89427565]
[1745895069537,82.9,147.21,147.19,26.89427565]
[1745895070941,26.89427565,147.25,147.2,26.89427565]
[1745895071155,82.9,147.24,147.21,26.89427565]
[1745895071558,82.9,147.24,147.22,26.89427565]
[1745895072225,26.89427565,147.26,147.22,26.89427565]
[1745895072433,26.89427565,147.24,147.2,26.89427565]
[1745895072655,26.89427565,147.25,147.2,26.89427565]
[1745895072856,33.00559598,147.27,147.22,26.89427565]
[1745895073030,6.11132033,147.27,147.22,26.89427565]
[1745895073237,26.89427565,147.26,147.22,26.89427565]
[1745895073960,6.11132033,147.27,147.24,26.89427565]
[1745895075562,6.11132033,147.27,147.24,18.19047811]
[1745895076262,6.11132033,147.27,147.21,18.19047811]
[1745895076469,6.11132033,147.27,147.24,18.19047811]
[1745895076640,0.063,147.29,147.26,18.19047811]
[1745895077055,18.25347811,147.29,147.25,18.19047811]
[1745895077557,0.063,147.29,147.25,18.19047811]
[1745895077942,18.25347811,147.29,147.25,18.19047811]
[1745895079458,0.063,147.29,147.25,18.19047811]
[1745895079664,0.063,147.29,147.24,6.1121571]
[1745895079849,0.063,147.29,147.28,18.19047811]
[1745895089575,0.063,147.29,147.28,51.98095622]
[1745895089776,0.063,147.29,147.28,58.09176556]
[1745895090780,0.063,147.29,147.24,15.6]
[1745895090781,18.25347811,147.29,147.24,15.6]
[1745895091013,18.25347811,147.29,147.25,18.19047811]
[1745895091144,0.063,147.29,147.26,18.19047811]
[1745895091348,0.063,147.29,147.27,18.19047811]
[1745895093055,0.063,147.29,147.28,36.38095622]
[1745895093275,0.063,147.29,147.28,18.19047811]
[1745895094471,18.25347811,147.29,147.24,15.6]
[1745895094669,18.25347811,147.29,147.24,33.79047811]
[1745895094903,0.063,147.29,147.25,18.19047811]
[1745895095710,6.17339445,147.29,147.26,18.19047811]
[1745895096095,6.17339445,147.29,147.25,18.19047811]
[1745895096613,6.17339445,147.29,147.26,18.19047811]
[1745895097313,0.063,147.29,147.28,18.19047811]
[1745895098589,0.063,147.29,147.27,18.19047811]
[1745895098987,0.063,147.29,147.28,18.19047811]
[1745895100021,0.063,147.29,147.24,42.95783625]
[1745895100201,18.25347811,147.29,147.25,18.19047811]
[1745895100597,0.063,147.29,147.25,18.19047811]
[1745895100797,6.17339445,147.29,147.26,18.19047811]
[1745895101095,0.063,147.29,147.27,18.19047811]
[1745895101416,0.063,147.29,147.28,18.19047811]
[1745895103018,0.063,147.29,147.28,42.49176556]
[1745895103609,0.063,147.29,147.28,24.30128745]
[1745895103815,0.063,147.29,147.28,18.19047811]
[1745895103987,0.063,147.29,147.28,61.58086665]
[1745895104193,0.063,147.33,147.32,18.19047811]
[1745895104403,0.063,147.33,147.32,19.54768621]
[1745895105015,0.063,147.33,147.32,25.65683635]
[1745895112137,0.063,147.33,147.32,44.44864678]
[1745895119113,0.063,147.35,147.32,77.91200026]
[1745895119319,0.063,147.35,147.34,81.17276665]
[1745895119738,0.063,147.36,147.34,84.08486539]
[1745895119950,0.063,147.36,147.35,55.17276665]
[1745895121649,0.063,147.36,147.35,61.28067299]
[1745895122138,0.063,147.36,147.34,1.35689874]
[1745895122324,0.063,147.36,147.3,1.6292]
[1745895122325,0.063,147.36,147.32,15.76]
[1745895122527,0.063,147.36,147.34,18.19047811]
[1745895122834,0.063,147.36,147.35,18.19047811]
[1745895124153,0.063,147.36,147.35,62.63779475]
[1745895126356,0.063,147.36,147.35,88.63779475]
[1745895126529,0.063,147.36,147.35,50.29838445]
[1745895126731,0.063,147.36,147.35,44.19047811]
[1745895127539,0.063,147.36,147.35,50.29838445]
[1745895128566,0.063,147.36,147.35,18.19047811]
[1745895132147,0.063,147.36,147.29,0.063]
[1745895132148,18.25347811,147.36,147.29,0.063]
[1745895132358,18.19047811,147.35,147.31,18.19047811]
[1745895132939,18.25347811,147.36,147.32,18.19047811]
[1745895133164,101.15347811,147.36,147.32,18.19047811]
[1745895133339,82.963,147.36,147.32,18.19047811]
[1745895133546,82.963,147.36,147.33,18.19047811]
[1745895133752,101.15347811,147.36,147.32,18.19047811]
[1745895133953,82.963,147.36,147.32,18.19047811]
[1745895134154,107.26097762,147.36,147.32,18.19047811]
[1745895135063,18.19047811,147.35,147.31,18.19047811]
[1745895136263,18.19047811,147.34,147.3,33.95047811]
[1745895136644,18.19047811,147.33,147.3,15.76]
[1745895139161,82.9,147.35,147.31,26.0]
[1745895139349,82.9,147.35,147.31,1.35757968]
[1745895139556,82.9,147.35,147.31,18.19047811]
[1745895139557,101.09047811,147.35,147.31,18.19047811]
[1745895140673,82.9,147.35,147.32,18.19047811]
[1745895141274,82.9,147.35,147.33,18.19047811]
[1745895141478,0.063,147.36,147.34,18.19047811]
[1745895141771,0.063,147.36,147.35,18.19047811]
[1745895143606,0.063,147.36,147.35,24.29838445]
[1745895145297,0.063,147.36,147.33,32.10861951]
[1745895145465,0.063,147.36,147.35,18.19047811]
[1745895146102,0.063,147.36,147.31,6.25172643]
[1745895146272,18.19047811,147.35,147.3,15.76]
[1745895146467,18.19047811,147.34,147.3,33.95047811]
[1745895146877,19.69747811,147.34,147.3,15.76]
[1745895147511,19.69747811,147.34,147.3,33.95047811]
[1745895147808,25.80595392,147.34,147.3,33.95047811]
[1745895148608,7.61547581,147.34,147.3,33.95047811]
[1745895150314,1.507,147.34,147.3,33.95047811]
[1745895150505,25.80593475,147.34,147.3,33.95047811]
[1745895151823,82.9,147.35,147.32,18.19047811]
[1745895156405,0.063,147.36,147.33,18.19047811]
[1745895156610,0.063,147.36,147.34,18.19047811]
[1745895158002,0.063,147.36,147.33,18.19047811]
[1745895160422,18.19047811,147.35,147.31,18.19047811]
[1745895161738,18.19047811,147.33,147.3,15.76]
[1745895162106,82.9,147.35,147.3,15.76]
[1745895162107,24.29887844,147.34,147.3,33.95047811]
[1745895163331,18.19047811,147.33,147.3,15.76]
[1745895163843,18.19047811,147.34,147.3,33.95047811]
[1745895164045,24.29884994,147.34,147.3,33.95047811]
[1745895167538,24.29884994,147.34,147.31,18.19047811]
[1745895167539,6.10837183,147.34,147.31,18.19047811]
[1745895167843,82.9,147.35,147.33,18.19047811]
[1745895168040,0.063,147.36,147.33,18.19047811]
[1745895168244,18.25347811,147.36,147.31,18.19047811]
[1745895168539,0.063,147.36,147.32,18.19047811]
[1745895170054,5.02931152,147.35,147.32,18.19047811]
[1745895170960,5.02931152,147.35,147.33,18.19047811]
[1745895171164,5.02931152,147.35,147.34,18.19047811]
[1745895172043,23.21978963,147.35,147.3,41.76]
[1745895172241,18.19047811,147.33,147.3,41.76]
[1745895172850,5.02931152,147.34,147.3,41.76]
[1745895173064,5.02931152,147.34,147.3,66.0604199]
[1745895173438,18.19047811,147.35,147.3,66.0604199]
[1745895174458,18.19047811,147.35,147.31,18.19047811]
[1745895175168,5.03727403,147.34,147.31,18.19047811]
[1745895175860,5.03727403,147.33,147.31,18.19047811]
[1745895176247,5.03727403,147.33,147.31,24.30002287]
[1745895176447,101.15347811,147.36,147.32,18.19047811]
[1745895177061,82.963,147.36,147.32,24.29959792]
[1745895177239,5.04026125,147.35,147.32,24.29959792]
[1745895177763,5.04026125,147.35,147.32,18.19047811]
[1745895178170,5.04026125,147.34,147.32,18.19047811]
[1745895179355,5.04026125,147.34,147.31,6.10945519]
[1745895179356,107.26099244,147.36,147.31,6.10945519]
[1745895179569,100.42778887,147.36,147.31,17.46672973]
[1745895179744,100.42778887,147.36,147.32,11.35727454]
[1745895179938,94.32027454,147.36,147.32,11.35727454]
[1745895180250,94.32027454,147.36,147.31,6.10945519]
[1745895180251,5.04449435,147.35,147.31,17.46672973]
[1745895180767,5.04449435,147.34,147.31,17.46672973]
[1745895181275,5.04449435,147.34,147.31,11.35727454]
[1745895181740,5.04449435,147.34,147.31,17.46682759]
[1745895182269,100.42779407,147.36,147.31,11.35727454]
[1745895182568,100.42779407,147.36,147.31,17.46680884]
[1745895182869,5.04307984,147.35,147.31,17.46680884]
[1745895183172,11.35727454,147.34,147.3,53.11727454]
[1745895183677,16.40035438,147.35,147.31,11.35727454]
[1745895183970,16.40035438,147.34,147.3,53.11727454]
[1745895185053,5.04307984,147.33,147.3,53.11727454]
[1745895185759,11.35727454,147.34,147.3,53.11727454]
[1745895187081,17.46520259,147.35,147.3,53.11727454]
[1745895187264,6.10792805,147.35,147.3,53.11727454]
[1745895187469,11.35727454,147.35,147.31,11.35727454]
[1745895187780,5.04281613,147.34,147.31,11.35727454]
[1745895189063,0.063,147.36,147.33,11.35727454]
[1745895190069,0.063,147.36,147.34,17.46540017]
[1745895190382,0.063,147.36,147.35,11.35727454]
[1745895191383,5.10974702,147.36,147.35,11.35727454]
[1745895191965,5.10974702,147.36,147.34,11.35727454]
[1745895192464,5.04674702,147.35,147.33,6.10861398]
[1745895192668,5.04674702,147.35,147.34,11.35727454]
[1745895192990,5.04674702,147.35,147.32,6.10915014]
[1745895193162,5.04674702,147.35,147.34,11.35727454]
[1745895193584,5.04674702,147.35,147.3,17.11719605]
[1745895193791,11.35727454,147.34,147.3,27.11727454]
[1745895194167,16.40402156,147.35,147.3,27.11727454]
[1745895194689,5.04674702,147.34,147.3,27.11727454]
[1745895195197,5.04674702,147.34,147.31,11.35727454]
[1745895195386,5.04674702,147.33,147.31,11.35727454]
[1745895195996,17.4653033,147.35,147.31,11.35727454]
[1745895196799,16.40142408,147.34,147.3,15.76]
[1745895197001,16.40142408,147.34,147.3,27.11727454]
[1745895197381,6.10873549,147.33,147.3,27.11727454]
[1745895197680,5.04414954,147.32,147.3,27.11727454]
[1745895198796,6.10873549,147.33,147.3,27.11727454]
[1745895199406,6.10873549,147.33,147.3,15.76]
[1745895199706,17.46601003,147.33,147.29,11.42027454]
[1745895199880,5.04231541,147.32,147.29,11.42027454]
[1745895200991,5.04231541,147.31,147.29,11.42027454]
[1745895201898,17.46601003,147.33,147.29,11.42027454]
[1745895202909,5.04132616,147.32,147.29,11.42027454]
[1745895203715,5.04132616,147.32,147.31,11.35727454]
[1745895203894,6.10859977,147.34,147.31,11.35727454]
[1745895204501,5.04112129,147.33,147.31,11.35727454]
[1745895205392,5.04112129,147.32,147.31,11.35727454]
[1745895206903,16.39839583,147.32,147.29,0.063]
[1745895207082,6.10956486,147.31,147.29,0.063]
[1745895207287,17.4668394,147.31,147.29,0.063]
[1745895207690,6.10956486,147.31,147.29,0.063]
[1745895208405,17.4668394,147.31,147.29,0.063]
[1745895209311,11.35727454,147.3,147.29,0.063]
[1745895209896,6.10926834,147.32,147.29,0.063]
[1745895210097,6.10926834,147.32,147.29,11.42027454]
[1745895210318,17.46605218,147.33,147.29,11.42027454]
[1745895210609,94.25727454,147.34,147.3,11.35727454]
[1745895210812,13.02397454,147.36,147.32,11.35727454]
[1745895210995,7.77439923,147.36,147.32,11.35727454]
[1745895211196,19.13167377,147.36,147.32,11.35727454]
[1745895211796,1.6667,147.36,147.32,11.35727454]
[1745895212999,0.063,147.36,147.32,11.35727454]
[1745895213203,0.063,147.36,147.35,11.35727454]
[1745895214228,0.063,147.36,147.34,11.35727454]
[1745895218823,0.063,147.36,147.32,6.10900766]
[1745895219206,0.063,147.36,147.34,11.35727454]
[1745895219724,0.063,147.36,147.35,11.35727454]
[1745895220229,5.10635107,147.36,147.35,11.35727454]
[1745895223322,0.063,147.36,147.35,11.35727454]
[1745895223826,0.063,147.36,147.35,63.43146327]
[1745895225233,0.063,147.36,147.35,14.46]
[1745895228617,5.10417097,147.36,147.35,14.46]
[1745895230033,11.21166282,147.36,147.35,14.46]
[1745895233329,11.21166282,147.36,147.33,11.35727454]
[1745895233531,16.39844551,147.35,147.32,14.46]
[1745895233722,11.35727454,147.34,147.32,14.46]
[1745895234032,11.35727454,147.33,147.29,11.42027454]
[1745895234611,5.04117097,147.32,147.29,11.42027454]
[1745895235535,11.15073583,147.31,147.29,0.063]
[1745895236235,11.15073583,147.31,147.29,11.42027454]
[1745895236624,6.10956486,147.31,147.29,11.42027454]
[1745895237533,17.46614937,147.33,147.29,11.42027454]
[1745895237738,6.10887483,147.33,147.29,11.42027454]
[1745895238441,5.03613185,147.32,147.29,11.42027454]
[1745895239433,5.03613185,147.31,147.29,11.42027454]
[1745895240241,5.03613185,147.32,147.29,11.42027454]
[1745895241341,5.03613185,147.32,147.3,11.35727454]
[1745895242143,5.03613185,147.32,147.29,11.42027454]
[1745895248051,5.03613185,147.32,147.3,11.35727454]
[1745895248257,100.36570265,147.34,147.29,11.42027454]
[1745895248857,100.36570265,147.34,147.29,0.063]
[1745895249047,100.36570265,147.34,147.29,11.42027454]
[1745895249253,11.35727454,147.31,147.29,0.063]
[1745895249555,11.35727454,147.32,147.29,0.063]
[1745895251651,6.10956486,147.31,147.29,0.063]
[1745895253246,17.4668394,147.31,147.29,0.063]
[1745895254558,17.46655255,147.32,147.29,0.063]
[1745895254850,6.10927801,147.32,147.29,0.063]
[1745895255051,82.9,147.33,147.3,11.35727454]
[1745895255649,5.02965106,147.32,147.3,11.35727454]
[1745895256343,82.9,147.33,147.3,11.35727454]
[1745895256540,82.9,147.33,147.32,11.35727454]
[1745895256746,0.063,147.36,147.32,11.35727454]
[1745895256934,0.063,147.36,147.33,11.35727454]
[1745895257138,5.0308785,147.35,147.33,11.35727454]
[1745895257746,5.0308785,147.35,147.31,6.10931447]
[1745895257952,5.0308785,147.35,147.33,11.35727454]
[1745895258647,5.0308785,147.35,147.34,11.35727454]
[1745895258854,0.063,147.36,147.34,11.35727454]
[1745895262443,0.063,147.36,147.35,11.35727454]
[1745895266670,0.063,147.36,147.33,14.18]
[1745895266845,0.063,147.36,147.34,11.35727454]
[1745895267047,0.063,147.36,147.35,11.35727454]
[1745895269278,0.063,147.36,147.35,17.46518088]
[1745895272271,0.063,147.36,147.35,11.35727454]
[1745895274278,0.063,147.36,147.35,17.46518088]
[1745895275778,0.063,147.36,147.35,48.82909009]
[1745895275962,0.063,147.36,147.35,48.97125166]
[1745895277476,0.063,147.36,147.35,37.61397712]
[1745895284090,0.063,147.36,147.35,48.97125166]
[1745895290168,0.063,147.36,147.35,17.46518088]
[1745895291988,0.063,147.36,147.35,28.82245542]
[1745895292286,0.063,147.36,147.35,42.74245542]
[1745895297498,0.063,147.36,147.35,27.29030573]
[1745895307406,0.063,147.36,147.35,56.33990329]
[1745895307707,0.063,147.38,147.36,18.64964886]
[1745895307881,0.063,147.38,147.37,8.61911466]
[1745895310089,0.063,147.38,147.37,14.72619208]
[1745895311687,0.063,147.38,147.36,6.10735952]
[1745895311915,0.063,147.38,147.36,13.36975891]
[1745895312100,0.063,147.38,147.36,7.26239939]
[1745895313518,0.063,147.38,147.37,7.26239939]
[1745895314198,0.063,147.38,147.37,21.12239939]
[1745895315432,0.063,147.38,147.37,47.37807949]
[1745895315600,0.063,147.38,147.37,51.45710258]
[1745895323008,1e-08,147.38,147.37,158.35710258]
[1745895323246,1e-08,147.38,147.37,157.00031033]
[1745895328943,1e-08,147.38,147.37,162.38600881]
[1745895330229,1e-08,147.38,147.37,157.00031033]
[1745895331937,1e-08,147.38,147.37,162.5616403]
[1745895334449,1e-08,147.38,147.37,157.00031033]
[1745895335125,1e-08,147.38,147.37,162.45349452]
[1745895335633,1e-08,147.38,147.37,158.37009642]
[1745895335836,1e-08,147.38,147.37,152.91691223]
[1745895336036,1e-08,147.38,147.37,152.77475066]
[1745895336445,1e-08,147.38,147.37,152.91691223]
[1745895340244,1e-08,147.38,147.37,126.91691223]
[1745895340450,1e-08,147.38,147.37,128.27339481]
[1745895342856,0.03,147.41,147.4,44.64964886]
[1745895343062,0.03,147.41,147.4,53.40625246]
[1745895344539,0.03,147.41,147.4,67.26625246]
[1745895345162,0.03,147.41,147.4,73.37208692]
[1745895354248,0.03,147.42,147.41,55.08193233]
[1745895355653,0.03,147.42,147.41,135.98193233]
[1745895356055,0.03,147.42,147.41,142.08735258]
[1745895356868,0.03,147.44,147.43,26.0]
[1745895357166,0.03,147.44,147.43,34.61406545]
[1745895357566,0.03,147.44,147.43,34.75622702]
[1745895357767,0.03,147.44,147.43,7.25802438]
[1745895357975,0.03,147.44,147.42,7.25802438]
[1745895358268,0.03,147.44,147.43,7.25802438]
[1745895359159,5.07733495,147.44,147.43,7.25802438]
[1745895359770,0.03,147.44,147.43,7.25802438]
[1745895361679,5.08064868,147.44,147.43,7.25802438]
[1745895362774,5.08064868,147.44,147.42,7.25802438]
[1745895363873,0.03,147.44,147.4,13.86]
[1745895364073,0.03,147.44,147.42,7.25802438]
[1745895366481,0.03,147.44,147.43,7.25802438]
[1745895367983,0.03,147.44,147.4,38.6154491]
[1745895368166,0.03,147.44,147.42,7.25802438]
[1745895368563,0.03,147.44,147.43,7.25802438]
[1745895369182,0.03,147.44,147.42,7.25802438]
[1745895371683,0.03,147.44,147.43,7.25802438]
[1745895372182,5.08331481,147.44,147.42,7.25802438]
[1745895372666,0.03,147.44,147.42,7.25802438]
[1745895374690,8.88212438,147.43,147.4,13.86]
[1745895374898,5.05881216,147.42,147.4,21.11802438]
[1745895375689,5.05881216,147.42,147.41,7.25802438]
[1745895376595,5.05881216,147.42,147.4,21.11802438]
[1745895377481,5.05881216,147.41,147.4,38.75764489]
[1745895377675,0.03,147.44,147.43,26.0]
[1745895377871,0.03,147.44,147.43,53.40603233]
[1745895378198,0.03,147.47,147.46,50.89516049]
[1745895378375,0.03,147.47,147.46,73.34906641]
[1745895379296,0.03,147.47,147.46,71.99318487]
[1745895379487,0.03,147.47,147.46,76.064865]
[1745895381500,0.03,147.47,147.46,51.16970451]
[1745895381797,0.03,147.47,147.46,57.27305457]
[1745895382677,0.03,147.47,147.46,76.064865]
[1745895384598,0.03,147.48,147.46,76.064865]
[1745895384806,0.03,147.5,147.49,26.0]
[1745895385094,0.03,147.5,147.49,37.32970451]
[1745895385400,0.03,147.5,147.48,11.32970451]
[1745895385703,0.03,147.5,147.47,39.84]
[1745895386000,0.03,147.5,147.48,11.32970451]
[1745895386382,0.03,147.5,147.49,11.32970451]
[1745895386990,0.03,147.5,147.47,45.94280802]
[1745895387492,0.03,147.5,147.49,11.32970451]
[1745895388681,0.03,147.5,147.48,6.10220085]
[1745895388911,0.03,147.5,147.34,38.65547688]
[1745895388912,12.94500451,147.49,147.4,18.64964886]
[1745895389091,11.32970451,147.47,147.43,11.32970451]
[1745895389295,11.32970451,147.47,147.42,11.32970451]
[1745895389600,12.94500451,147.49,147.42,11.32970451]
[1745895389780,11.32970451,147.46,147.42,17.4344405]
[1745895390204,11.32970451,147.47,147.43,11.32970451]
[1745895390811,11.32970451,147.47,147.42,6.10473599]
[1745895391112,11.32970451,147.47,147.43,17.43428399]
[1745895391312,82.9,147.48,147.43,17.43428399]
[1745895392115,11.32970451,147.47,147.43,17.43428399]
[1745895392913,82.9,147.48,147.45,11.32970451]
[1745895393120,82.93,147.5,147.47,11.32970451]
[1745895393415,0.03,147.5,147.48,11.32970451]
[1745895394707,0.03,147.5,147.48,6.10238601]
[1745895394884,0.03,147.5,147.46,13.84]
[1745895394885,0.03,147.5,147.47,17.43252233]
[1745895395816,0.03,147.5,147.49,11.32970451]
[1745895396416,0.03,147.5,147.49,41.45121945]
[1745895396591,0.03,147.5,147.49,30.12151494]
[1745895396794,0.03,147.5,147.49,36.22362355]
[1745895397702,0.03,147.5,147.49,47.55332806]
[1745895400723,0.03,147.5,147.49,73.55332806]
[1745895402727,0.03,147.5,147.49,62.22362355]
[1745895402939,0.03,147.5,147.49,50.75175747]
[1745895403244,0.03,147.5,147.49,36.22362355]
[1745895407742,0.03,147.5,147.49,24.89391904]
[1745895407938,0.03,147.5,147.49,62.22362355]
[1745895410444,0.03,147.5,147.49,73.55332806]
[1745895415658,0.03,147.53,147.52,44.64964886]
[1745895415862,0.03,147.53,147.52,76.06238261]
[1745895416654,0.03,147.54,147.53,18.79181043]
[1745895416854,0.03,147.54,147.53,31.47657582]
[1745895417433,0.03,147.54,147.53,36.83487152]
[1745895417961,0.03,147.54,147.53,42.93532566]
[1745895418469,0.03,147.54,147.53,37.57702996]
[1745895421534,0.03,147.56,147.55,26.0]
[1745895421851,0.03,147.59,147.55,60.90238023]
[1745895422053,0.03,147.59,147.58,11.32970451]
[1745895423859,0.03,147.59,147.57,25.16970451]
[1745895424065,0.03,147.59,147.57,31.26830266]
[1745895424651,0.03,147.59,147.58,11.32970451]
[1745895425177,0.03,147.59,147.58,36.21990225]
[1745895425343,0.03,147.59,147.58,62.21990225]
[1745895430573,1.5572,147.59,147.57,13.84]
[1745895430770,12.88690451,147.59,147.57,13.84]
[1745895431267,1.5572,147.59,147.57,13.84]
[1745895433255,12.88690451,147.59,147.57,13.84]
[1745895433768,12.88690451,147.59,147.55,43.42931362]
[1745895434784,1.5572,147.59,147.56,11.32970451]
[1745895436575,1.5572,147.59,147.56,17.42877145]
[1745895438658,12.88690451,147.59,147.56,6.09906694]
[1745895439472,12.88690451,147.59,147.55,43.42927282]
[1745895442047,1.5572,147.59,147.56,17.42887954]
[1745895442872,1.5572,147.59,147.52,38.81567019]
[1745895442873,28.87290902,147.57,147.5,6.10169491]
[1745895443048,11.32970451,147.53,147.5,6.10169491]
[1745895443588,6.2135,147.57,147.5,17.43139942]
[1745895443589,11.32970451,147.54,147.5,17.43139942]
[1745895443752,6.2135,147.57,147.51,11.32970451]
[1745895443951,11.32970451,147.56,147.51,11.32970451]
[1745895444178,11.32970451,147.53,147.49,58.69481043]
[1745895444369,11.32970451,147.53,147.49,70.02451494]
[1745895444548,11.32970451,147.54,147.5,11.32970451]
[1745895446174,11.32970451,147.54,147.49,64.7968208]
[1745895446380,11.32970451,147.54,147.5,11.32970451]
[1745895447777,11.32970451,147.54,147.5,17.43127595]
[1745895448473,11.32970451,147.56,147.52,11.32970451]
[1745895450773,12.31240162,147.57,147.52,11.32970451]
[1745895451152,11.32970451,147.56,147.52,11.32970451]
[1745895452376,11.32970451,147.57,147.53,11.32970451]
[1745895452585,11.32970451,147.57,147.54,11.32970451]
[1745895452884,11.32970451,147.57,147.53,11.32970451]
[1745895453577,11.32970451,147.57,147.53,25.16970451]
[1745895453882,11.32970451,147.56,147.53,25.16970451]
[1745895454260,11.32970451,147.56,147.53,13.84]
[1745895457179,11.32970451,147.56,147.53,19.94040646]
[1745895457380,84.4572,147.59,147.55,11.32970451]
[1745895457680,95.78690451,147.59,147.55,11.32970451]
[1745895457871,11.32970451,147.58,147.54,11.32970451]
[1745895458078,11.32970451,147.58,147.53,31.27011097]
[1745895459484,11.32970451,147.58,147.54,11.32970451]
[1745895459790,11.32970451,147.58,147.53,19.94040646]
[1745895460081,11.32970451,147.57,147.53,19.94040646]
[1745895460274,11.32970451,147.55,147.53,13.84]
[1745895461793,11.32970451,147.56,147.53,13.84]
[1745895462781,11.32970451,147.57,147.53,31.27008427]
[1745895463291,11.32970451,147.56,147.53,19.94037976]
[1745895465593,11.32970451,147.57,147.53,19.94037976]
[1745895465894,11.32970451,147.56,147.53,19.94037976]
[1745895466693,11.32970451,147.57,147.53,19.94037976]
[1745895467195,82.9,147.58,147.53,19.94037976]
[1745895467499,11.32970451,147.58,147.54,11.32970451]
[1745895467868,11.32970451,147.58,147.53,31.27008427]
[1745895468595,11.32970451,147.58,147.54,17.42956746]
[1745895468805,1.5572,147.59,147.55,11.32970451]
[1745895469168,12.88690451,147.59,147.55,11.32970451]
[1745895471512,0.03,147.59,147.55,17.42914427]
[1745895472513,0.03,147.59,147.56,11.32970451]
[1745895473914,0.03,147.59,147.56,17.42891291]
[1745895474214,0.03,147.59,147.56,11.32970451]
[1745895474704,0.03,147.59,147.56,17.42880475]
[1745895475003,0.03,147.59,147.58,11.32970451]
[1745895475387,0.03,147.59,147.57,11.32970451]
[1745895476304,0.03,147.59,147.56,6.09910024]
[1745895476507,0.03,147.59,147.58,11.32970451]
[1745895476701,0.03,147.59,147.58,30.12151494]
[1745895477007,0.03,147.59,147.58,11.32970451]
[1745895477710,0.03,147.59,147.58,45.29640414]
[1745895478706,0.03,147.59,147.58,51.39479145]
[1745895490517,0.03,147.59,147.58,13.82]
[1745895491907,0.03,147.59,147.58,25.14970451]
[1745895492219,0.03,147.59,147.58,31.24809182]